[Event "Late-Titled-Tuesday-Blitz-April-16-2024"]
[Site "Chess.com"]
[Date "2024.04.16"]
[Round "3"]
[White "Smoking_Crow"]
[Black "Caterpiller35"]
[Result "0-1"]
[WhiteElo "2675"]
[BlackElo "2487"]
[TimeControl "180+1"]
[EndTime "14:27:52 PDT"]
[Termination "Caterpiller35 won by resignation"]

1. e4 {[%clk 0:02:51.5]} 1... c5 {[%clk 0:02:59.8]} 2. Nf3 {[%clk 0:02:49.8]}
2... Nc6 {[%clk 0:02:59.8]} 3. c3 {[%clk 0:02:47.5]} 3... Nf6 {[%clk 0:02:59.5]}
4. e5 {[%clk 0:02:44.8]} 4... Nd5 {[%clk 0:02:59.6]} 5. d4 {[%clk 0:02:43]} 5...
cxd4 {[%clk 0:02:58.8]} 6. cxd4 {[%clk 0:02:39.5]} 6... d6 {[%clk 0:02:58.6]} 7.
Bc4 {[%clk 0:02:38.9]} 7... e6 {[%clk 0:02:58.6]} 8. O-O {[%clk 0:02:36.8]} 8...
Be7 {[%clk 0:02:58.6]} 9. exd6 {[%clk 0:02:35.5]} 9... Qxd6 {[%clk 0:02:58.6]}
10. Nc3 {[%clk 0:02:36.4]} 10... Nxc3 {[%clk 0:02:58]} 11. bxc3 {[%clk
0:02:37.3]} 11... O-O {[%clk 0:02:58.5]} 12. Qe2 {[%clk 0:02:34.7]} 12... b6
{[%clk 0:02:58]} 13. Bd3 {[%clk 0:02:30.5]} 13... Bb7 {[%clk 0:02:57.3]} 14. a4
{[%clk 0:02:30.5]} 14... Rac8 {[%clk 0:02:54.6]} 15. Qe4 {[%clk 0:02:26.3]}
15... g6 {[%clk 0:02:53.4]} 16. Bh6 {[%clk 0:02:25.4]} 16... Na5 {[%clk
0:02:38.1]} 17. Qg4 {[%clk 0:02:22.9]} 17... Rxc3 {[%clk 0:02:27.4]} 18. Bxf8
{[%clk 0:02:21.8]} 18... Bxf8 {[%clk 0:02:28.3]} 19. Rfd1 {[%clk 0:02:18]} 19...
Nb3 {[%clk 0:02:27]} 20. Rab1 {[%clk 0:02:15.4]} 20... Bxf3 {[%clk 0:02:15.2]}
21. Qxf3 {[%clk 0:02:15.4]} 21... Qxd4 {[%clk 0:01:59.9]} 22. Qe2 {[%clk
0:02:10.4]} 22... Qf6 {[%clk 0:01:47.1]} 23. Bb5 {[%clk 0:02:03.3]} 23... Bc5
{[%clk 0:01:44.5]} 24. Qb2 {[%clk 0:01:52.4]} 24... Kg7 {[%clk 0:01:14.9]} 25.
Bf1 {[%clk 0:01:32.3]} 25... h5 {[%clk 0:01:13]} 26. Rd3 {[%clk 0:01:29.9]}
26... Rxd3 {[%clk 0:01:04.1]} 27. Qxf6+ {[%clk 0:01:30.4]} 27... Kxf6 {[%clk
0:01:04.2]} 28. Bxd3 {[%clk 0:01:31.3]} 28... Nd4 {[%clk 0:00:59.4]} 29. Kf1
{[%clk 0:01:25.3]} 29... a5 {[%clk 0:00:58.1]} 30. Bb5 {[%clk 0:01:24.1]} 30...
Nxb5 {[%clk 0:00:50]} 31. Rxb5 {[%clk 0:01:23.6]} 31... Ke5 {[%clk 0:00:48.6]}
32. Ke2 {[%clk 0:01:23.6]} 32... Kd4 {[%clk 0:00:48.7]} 33. Kd2 {[%clk
0:01:18.5]} 33... Kc4 {[%clk 0:00:47.5]} 34. f3 {[%clk 0:01:18.6]} 34... e5
{[%clk 0:00:43.4]} 35. Kc2 {[%clk 0:01:15.3]} 35... f5 {[%clk 0:00:42.6]} 36.
Rb1 {[%clk 0:01:14.2]} 36... e4 {[%clk 0:00:41]} 37. fxe4 {[%clk 0:01:13.8]}
37... fxe4 {[%clk 0:00:41.9]} 38. Rd1 {[%clk 0:01:14]} 38... e3 {[%clk
0:00:41.4]} 39. Rd8 {[%clk 0:01:08.3]} 39... Kb4 {[%clk 0:00:37.8]} 40. Re8
{[%clk 0:01:07.6]} 40... Kxa4 {[%clk 0:00:37.5]} 41. Re6 {[%clk 0:01:07.5]}
41... b5 {[%clk 0:00:28.2]} 42. Rxg6 {[%clk 0:01:06.9]} 42... b4 {[%clk
0:00:28.2]} 43. Re6 {[%clk 0:01:06.7]} 43... Kb5 {[%clk 0:00:25.3]} 44. h3
{[%clk 0:01:04.6]} 44... a4 {[%clk 0:00:24.8]} 45. g4 {[%clk 0:01:04.4]} 45...
hxg4 {[%clk 0:00:24.6]} 46. hxg4 {[%clk 0:01:05.3]} 46... Kc4 {[%clk 0:00:25]}
47. g5 {[%clk 0:01:02]} 47... b3+ {[%clk 0:00:24.3]} 48. Kb1 {[%clk 0:01:01.4]}
48... a3 {[%clk 0:00:23.8]} 49. Re4+ {[%clk 0:00:59.1]} 49... Bd4 {[%clk
0:00:23.8]} 50. g6 {[%clk 0:00:58.1]} 50... a2+ {[%clk 0:00:23.8]} 0-1

[Event "Late-Titled-Tuesday-Blitz-April-16-2024"]
[Site "Chess.com"]
[Date "2024.04.16"]
[Round "3"]
[White "NowInChess"]
[Black "Balla_Tamas"]
[Result "0-1"]
[WhiteElo "2255"]
[BlackElo "2545"]
[TimeControl "180+1"]
[EndTime "14:27:53 PDT"]
[Termination "Balla_Tamas won on time"]

1. e4 {[%clk 0:03:00.9]} 1... c5 {[%clk 0:02:59.3]} 2. d3 {[%clk 0:03:01.1]}
2... Nc6 {[%clk 0:02:59.2]} 3. g3 {[%clk 0:03:01.6]} 3... g6 {[%clk 0:02:59.6]}
4. Bg2 {[%clk 0:03:01.7]} 4... Bg7 {[%clk 0:03:00.1]} 5. f4 {[%clk 0:03:02.3]}
5... e6 {[%clk 0:03:00.3]} 6. Nf3 {[%clk 0:03:02.8]} 6... Nge7 {[%clk
0:03:00.9]} 7. O-O {[%clk 0:03:02.9]} 7... O-O {[%clk 0:03:00.1]} 8. c3 {[%clk
0:03:02.3]} 8... d5 {[%clk 0:02:58.9]} 9. e5 {[%clk 0:03:01.6]} 9... d4 {[%clk
0:02:57.3]} 10. c4 {[%clk 0:02:56.5]} 10... a6 {[%clk 0:02:57.8]} 11. Qe2 {[%clk
0:02:38.1]} 11... b5 {[%clk 0:02:57.7]} 12. Na3 {[%clk 0:02:37]} 12... Rb8
{[%clk 0:02:53]} 13. Bd2 {[%clk 0:02:34.9]} 13... bxc4 {[%clk 0:02:37.5]} 14.
Nxc4 {[%clk 0:02:34.3]} 14... Nb4 {[%clk 0:02:37.8]} 15. Bxb4 {[%clk 0:02:15.4]}
15... Rxb4 {[%clk 0:02:37.3]} 16. Rac1 {[%clk 0:02:10.2]} 16... Bb7 {[%clk
0:02:37.3]} 17. Nd6 {[%clk 0:02:09.5]} 17... Bd5 {[%clk 0:02:28.2]} 18. a3
{[%clk 0:02:04.1]} 18... Rb3 {[%clk 0:02:27.2]} 19. Rxc5 {[%clk 0:02:02.7]}
19... Qb6 {[%clk 0:02:22.7]} 20. Rc2 {[%clk 0:01:54.8]} 20... Rb8 {[%clk
0:02:22.1]} 21. Rf2 {[%clk 0:01:44.5]} 21... Nf5 {[%clk 0:02:11.3]} 22. Nxf5
{[%clk 0:01:37.7]} 22... gxf5 {[%clk 0:02:10.7]} 23. Ng5 {[%clk 0:01:19.1]}
23... Bxg2 {[%clk 0:02:00.8]} 24. Kxg2 {[%clk 0:01:20]} 24... Qb5 {[%clk
0:01:56.4]} 25. Rd2 {[%clk 0:01:04]} 25... h6 {[%clk 0:01:54.5]} 26. Nf3 {[%clk
0:01:03.7]} 26... Qd5 {[%clk 0:01:51.9]} 27. Rc2 {[%clk 0:00:56.6]} 27... a5
{[%clk 0:01:47.1]} 28. Rc4 {[%clk 0:00:56.2]} 28... Bf8 {[%clk 0:01:36.3]} 29.
h3 {[%clk 0:00:16.9]} 29... Qb7 {[%clk 0:01:34.2]} 30. Rc2 {[%clk 0:00:15.6]}
30... Qb5 {[%clk 0:01:32.1]} 31. Rc4 {[%clk 0:00:15.6]} 31... Be7 {[%clk
0:01:28.1]} 32. Nxd4 {[%clk 0:00:14.4]} 32... Qb7+ {[%clk 0:01:27.8]} 33. Qf3
{[%clk 0:00:14]} 33... Rxb2 {[%clk 0:01:26.7]} 34. Qxb7 {[%clk 0:00:13]} 34...
R8xb7 {[%clk 0:01:26.2]} 35. Nc6 {[%clk 0:00:12.4]} 35... Bxa3 {[%clk
0:01:23.8]} 36. Nxa5 {[%clk 0:00:11.5]} 36... Rxf2+ {[%clk 0:01:21.7]} 37. Kxf2
{[%clk 0:00:12.4]} 37... Rb2+ {[%clk 0:01:21.7]} 38. Kf3 {[%clk 0:00:12.5]}
38... Bb4 {[%clk 0:01:15.8]} 39. Rc8+ {[%clk 0:00:12.3]} 39... Kg7 {[%clk
0:01:10.8]} 40. Rb8 {[%clk 0:00:11.2]} 40... Rb1 {[%clk 0:01:07.9]} 41. Nc6
{[%clk 0:00:09.6]} 41... Rf1+ {[%clk 0:01:07.1]} 42. Ke2 {[%clk 0:00:09.8]}
42... Re1+ {[%clk 0:01:07]} 43. Kf3 {[%clk 0:00:10]} 43... Bc5 {[%clk
0:01:04.8]} 44. Rb2 {[%clk 0:00:05.5]} 44... Re3+ {[%clk 0:01:03.9]} 45. Kg2
{[%clk 0:00:05.3]} 45... Rxd3 {[%clk 0:01:04.3]} 46. Nb4 {[%clk 0:00:04.3]}
46... Ra3 {[%clk 0:00:59.5]} 47. Nc2 {[%clk 0:00:03.1]} 47... Rc3 {[%clk
0:00:58.8]} 48. Ne1 {[%clk 0:00:02.2]} 48... h5 {[%clk 0:00:57.5]} 49. Rc2
{[%clk 0:00:01.7]} 49... Re3 {[%clk 0:00:50.7]} 0-1

[Event "Late-Titled-Tuesday-Blitz-April-16-2024"]
[Site "Chess.com"]
[Date "2024.04.16"]
[Round "3"]
[White "MikeSailer"]
[Black "crazy_but_lazy"]
[Result "0-1"]
[WhiteElo "2162"]
[BlackElo "2541"]
[TimeControl "180+1"]
[EndTime "14:27:57 PDT"]
[Termination "crazy_but_lazy won by checkmate"]

1. d4 {[%clk 0:02:09.6]} 1... d5 {[%clk 0:02:58.5]} 2. Nf3 {[%clk 0:02:09.2]}
2... e6 {[%clk 0:02:56]} 3. Bf4 {[%clk 0:01:51.4]} 3... Nf6 {[%clk 0:02:49.9]}
4. e3 {[%clk 0:01:50.6]} 4... Bd6 {[%clk 0:02:40.8]} 5. Nbd2 {[%clk 0:01:48.6]}
5... c5 {[%clk 0:02:37.7]} 6. c3 {[%clk 0:01:48.3]} 6... O-O {[%clk 0:02:35.5]}
7. Bd3 {[%clk 0:01:48.3]} 7... Qc7 {[%clk 0:02:10.8]} 8. Bg3 {[%clk 0:01:32.1]}
8... Nbd7 {[%clk 0:01:56.1]} 9. a3 {[%clk 0:01:28.7]} 9... e5 {[%clk 0:01:43.9]}
10. dxe5 {[%clk 0:01:19.5]} 10... Nxe5 {[%clk 0:01:43.7]} 11. Nxe5 {[%clk
0:01:04]} 11... Bxe5 {[%clk 0:01:44.6]} 12. Nf3 {[%clk 0:00:58.5]} 12... Bxg3
{[%clk 0:01:33.2]} 13. hxg3 {[%clk 0:00:58]} 13... h6 {[%clk 0:01:33]} 14. Bc2
{[%clk 0:00:50.7]} 14... Re8 {[%clk 0:01:29.5]} 15. Qd3 {[%clk 0:00:48.5]} 15...
b6 {[%clk 0:01:27.4]} 16. O-O-O {[%clk 0:00:47.6]} 16... Be6 {[%clk 0:01:05.3]}
17. Nh4 {[%clk 0:00:42.7]} 17... b5 {[%clk 0:00:36]} 18. f3 {[%clk 0:00:33.5]}
18... b4 {[%clk 0:00:32.8]} 19. g4 {[%clk 0:00:27.5]} 19... bxa3 {[%clk
0:00:31.4]} 20. bxa3 {[%clk 0:00:25.8]} 20... Rab8 {[%clk 0:00:29.2]} 21. g5
{[%clk 0:00:23.2]} 21... hxg5 {[%clk 0:00:27.6]} 22. Nf5 {[%clk 0:00:19.8]}
22... Bxf5 {[%clk 0:00:26.5]} 23. Qxf5 {[%clk 0:00:18.7]} 23... Rxe3 {[%clk
0:00:10.9]} 24. Qh3 {[%clk 0:00:15]} 24... Kf8 {[%clk 0:00:11.2]} 25. Qh8+
{[%clk 0:00:14.1]} 25... Ke7 {[%clk 0:00:11.7]} 26. Qxg7 {[%clk 0:00:14.2]}
26... Qf4 {[%clk 0:00:12.3]} 27. Rd2 {[%clk 0:00:12.2]} 27... Rxc3 {[%clk
0:00:07.2]} 28. Re1+ {[%clk 0:00:10.2]} 28... Re3 {[%clk 0:00:07.5]} 29. Rxe3+
{[%clk 0:00:10.6]} 29... Qxe3 {[%clk 0:00:08.4]} 30. Kd1 {[%clk 0:00:10.3]}
30... Qg1+ {[%clk 0:00:07.1]} 31. Ke2 {[%clk 0:00:10]} 31... Qxg2+ {[%clk
0:00:05.9]} 32. Kd1 {[%clk 0:00:09.1]} 32... Qf1# {[%clk 0:00:05.9]} 0-1

[Event "Late-Titled-Tuesday-Blitz-April-16-2024"]
[Site "Chess.com"]
[Date "2024.04.16"]
[Round "3"]
[White "RichardShtivelband"]
[Black "LuckIsMySkill"]
[Result "0-1"]
[WhiteElo "2365"]
[BlackElo "2673"]
[TimeControl "180+1"]
[EndTime "14:27:57 PDT"]
[Termination "LuckIsMySkill won by resignation"]

1. d4 {[%clk 0:02:58.9]} 1... Nf6 {[%clk 0:02:58.9]} 2. c4 {[%clk 0:02:58.6]}
2... e6 {[%clk 0:02:58.9]} 3. Nc3 {[%clk 0:02:57.9]} 3... Bb4 {[%clk 0:02:58.5]}
4. Qc2 {[%clk 0:02:57.5]} 4... d6 {[%clk 0:02:57.8]} 5. a3 {[%clk 0:02:55.7]}
5... Bxc3+ {[%clk 0:02:57.1]} 6. Qxc3 {[%clk 0:02:56.1]} 6... O-O {[%clk
0:02:57.8]} 7. Bg5 {[%clk 0:02:54.2]} 7... h6 {[%clk 0:02:54]} 8. Bh4 {[%clk
0:02:53.7]} 8... Nbd7 {[%clk 0:02:52.5]} 9. f3 {[%clk 0:02:49.9]} 9... e5 {[%clk
0:02:50.5]} 10. O-O-O {[%clk 0:02:40.7]} 10... exd4 {[%clk 0:02:47.1]} 11. Qxd4
{[%clk 0:02:40.2]} 11... a5 {[%clk 0:02:39.7]} 12. e4 {[%clk 0:02:39.2]} 12...
Qe7 {[%clk 0:02:31.1]} 13. Ne2 {[%clk 0:02:29.5]} 13... Qe5 {[%clk 0:02:26.4]}
14. Qd2 {[%clk 0:02:11.5]} 14... Nc5 {[%clk 0:02:24.1]} 15. Kb1 {[%clk
0:02:05.2]} 15... Nfxe4 {[%clk 0:02:23.7]} 16. Qd4 {[%clk 0:01:34]} 16... Qxd4
{[%clk 0:02:20.6]} 17. Nxd4 {[%clk 0:01:33.9]} 17... Ng5 {[%clk 0:02:20.6]} 18.
Nb5 {[%clk 0:01:32.9]} 18... Bf5+ {[%clk 0:02:16.1]} 19. Ka2 {[%clk 0:01:31.8]}
19... Rfc8 {[%clk 0:02:16.2]} 20. Be2 {[%clk 0:01:18.9]} 20... Nge6 {[%clk
0:01:49.3]} 21. Rhe1 {[%clk 0:01:12.8]} 21... Bc2 {[%clk 0:01:47.5]} 22. Rd2
{[%clk 0:01:08.8]} 22... Bg6 {[%clk 0:01:42]} 23. Bg3 {[%clk 0:00:41.9]} 23...
f6 {[%clk 0:01:39.2]} 24. f4 {[%clk 0:00:41]} 24... a4 {[%clk 0:01:31.3]} 25.
Bf3 {[%clk 0:00:39.7]} 25... Bf7 {[%clk 0:01:26.1]} 26. f5 {[%clk 0:00:33.2]}
26... Ng5 {[%clk 0:01:25.2]} 27. Bd5 {[%clk 0:00:33]} 27... Nge4 {[%clk
0:01:17.1]} 28. Rde2 {[%clk 0:00:21.4]} 28... Bxd5 {[%clk 0:01:12.1]} 29. cxd5
{[%clk 0:00:20.8]} 29... Nxg3 {[%clk 0:01:12.6]} 30. hxg3 {[%clk 0:00:20.8]}
30... Nd3 {[%clk 0:01:10]} 31. Rd1 {[%clk 0:00:16.3]} 31... Ne5 {[%clk
0:01:10.5]} 32. Rc2 {[%clk 0:00:16.3]} 32... Ra5 {[%clk 0:01:08.4]} 33. Rxc7
{[%clk 0:00:14.8]} 33... Rxc7 {[%clk 0:01:07.1]} 34. Nxc7 {[%clk 0:00:15.7]}
34... Kf7 {[%clk 0:01:05.8]} 35. Ne6 {[%clk 0:00:12.8]} 35... g6 {[%clk
0:01:01.6]} 36. Nd8+ {[%clk 0:00:11.8]} 36... Ke7 {[%clk 0:00:58]} 37. fxg6
{[%clk 0:00:05.7]} 37... Nxg6 {[%clk 0:00:58.9]} 38. Ne6 {[%clk 0:00:05]} 38...
Ne5 {[%clk 0:00:58]} 39. Rc1 {[%clk 0:00:04.9]} 39... Rxd5 {[%clk 0:00:55.9]}
40. Nf4 {[%clk 0:00:03.4]} 40... Rc5 {[%clk 0:00:54.9]} 41. Rh1 {[%clk
0:00:03.4]} 41... d5 {[%clk 0:00:47.5]} 42. Rxh6 {[%clk 0:00:03.5]} 42... d4
{[%clk 0:00:48.1]} 43. Rh7+ {[%clk 0:00:04.4]} 43... Kd6 {[%clk 0:00:47.7]} 44.
Rxb7 {[%clk 0:00:05.3]} 44... d3 {[%clk 0:00:48]} 45. Rb6+ {[%clk 0:00:05.3]}
45... Kd7 {[%clk 0:00:46.7]} 46. Rxf6 {[%clk 0:00:03.5]} 46... d2 {[%clk
0:00:45.1]} 47. Rf5 {[%clk 0:00:03.6]} 47... d1=Q {[%clk 0:00:44.1]} 0-1

[Event "Late-Titled-Tuesday-Blitz-April-16-2024"]
[Site "Chess.com"]
[Date "2024.04.16"]
[Round "3"]
[White "2L8IWUN"]
[Black "hristos03"]
[Result "0-1"]
[WhiteElo "2066"]
[BlackElo "2353"]
[TimeControl "180+1"]
[EndTime "14:27:57 PDT"]
[Termination "hristos03 won by resignation"]

1. d4 {[%clk 0:02:14.8]} 1... Nf6 {[%clk 0:02:58.9]} 2. Nf3 {[%clk 0:02:12.5]}
2... e6 {[%clk 0:02:58.1]} 3. Bf4 {[%clk 0:02:13]} 3... c5 {[%clk 0:02:57.3]} 4.
e3 {[%clk 0:02:13.5]} 4... Qb6 {[%clk 0:02:57.3]} 5. Nc3 {[%clk 0:02:13.3]} 5...
Be7 {[%clk 0:02:49.6]} 6. a3 {[%clk 0:02:11.7]} 6... O-O {[%clk 0:02:46.8]} 7.
Be2 {[%clk 0:02:00.5]} 7... cxd4 {[%clk 0:02:43.3]} 8. exd4 {[%clk 0:02:00]}
8... a6 {[%clk 0:02:41.7]} 9. O-O {[%clk 0:01:59.3]} 9... d6 {[%clk 0:02:37.9]}
10. h3 {[%clk 0:01:57.2]} 10... Nc6 {[%clk 0:02:26]} 11. Rb1 {[%clk 0:01:53.2]}
11... Bd7 {[%clk 0:02:21.8]} 12. d5 {[%clk 0:01:50.3]} 12... exd5 {[%clk
0:02:21.3]} 13. Nxd5 {[%clk 0:01:50.5]} 13... Nxd5 {[%clk 0:02:21.9]} 14. Qxd5
{[%clk 0:01:50.6]} 14... Be6 {[%clk 0:02:22.6]} 15. Qd2 {[%clk 0:01:46.2]} 15...
Rad8 {[%clk 0:02:19.4]} 16. Rfd1 {[%clk 0:01:45.3]} 16... Rfe8 {[%clk
0:02:18.6]} 17. Nd4 {[%clk 0:01:27.7]} 17... Nxd4 {[%clk 0:02:00.3]} 18. Qxd4
{[%clk 0:01:28.6]} 18... Qc7 {[%clk 0:02:00.8]} 19. c4 {[%clk 0:01:20.5]} 19...
Bf6 {[%clk 0:01:55.5]} 20. Qd3 {[%clk 0:01:16.2]} 20... Qa5 {[%clk 0:01:23.3]}
21. b4 {[%clk 0:01:13.4]} 21... Qf5 {[%clk 0:01:17.1]} 22. Qxf5 {[%clk
0:00:18.9]} 22... Bxf5 {[%clk 0:01:17.5]} 23. Bd3 {[%clk 0:00:18.2]} 23... Bxd3
{[%clk 0:01:09.6]} 24. Rxd3 {[%clk 0:00:19.1]} 24... Re4 {[%clk 0:01:09.9]} 25.
Bxd6 {[%clk 0:00:18.3]} 25... Rxc4 {[%clk 0:01:08.7]} 26. Rbd1 {[%clk
0:00:17.9]} 26... h6 {[%clk 0:01:01.9]} 27. Bg3 {[%clk 0:00:17.4]} 27... Rxd3
{[%clk 0:00:47]} 28. Rxd3 {[%clk 0:00:18.3]} 28... Rc1+ {[%clk 0:00:43.5]} 29.
Kh2 {[%clk 0:00:17.9]} 29... Rc3 {[%clk 0:00:43.4]} 30. Rxc3 {[%clk 0:00:17.5]}
30... Bxc3 {[%clk 0:00:44.3]} 31. Bd6 {[%clk 0:00:13.6]} 31... b5 {[%clk
0:00:43]} 32. Kg3 {[%clk 0:00:08.2]} 32... Bb2 {[%clk 0:00:42.7]} 33. Kf3 {[%clk
0:00:08.8]} 33... Bxa3 {[%clk 0:00:42.8]} 34. Ke4 {[%clk 0:00:09.2]} 34... a5
{[%clk 0:00:36.3]} 35. Kd5 {[%clk 0:00:09.6]} 35... Bxb4 {[%clk 0:00:33.1]} 36.
Bc7 {[%clk 0:00:09.5]} 36... a4 {[%clk 0:00:27.1]} 37. Kc6 {[%clk 0:00:08.7]}
37... Bc3 {[%clk 0:00:24.7]} 38. Bd6 {[%clk 0:00:04.1]} 38... b4 {[%clk
0:00:24.2]} 39. Kb5 {[%clk 0:00:03.3]} 39... a3 {[%clk 0:00:24.5]} 40. Ka4
{[%clk 0:00:03.3]} 40... a2 {[%clk 0:00:24.7]} 0-1

[Event "Late-Titled-Tuesday-Blitz-April-16-2024"]
[Site "Chess.com"]
[Date "2024.04.16"]
[Round "3"]
[White "ilm2034"]
[Black "Abund"]
[Result "0-1"]
[WhiteElo "2565"]
[BlackElo "2811"]
[TimeControl "180+1"]
[EndTime "14:28:05 PDT"]
[Termination "Abund won on time"]

1. e4 {[%clk 0:03:00.1]} 1... c6 {[%clk 0:03:00.4]} 2. d4 {[%clk 0:02:57.5]}
2... d5 {[%clk 0:03:01.3]} 3. f3 {[%clk 0:02:58]} 3... Qb6 {[%clk 0:02:58.6]} 4.
Nc3 {[%clk 0:02:57.9]} 4... dxe4 {[%clk 0:02:53]} 5. Bc4 {[%clk 0:02:57.4]} 5...
Nf6 {[%clk 0:02:39.2]} 6. Rb1 {[%clk 0:02:46.7]} 6... Bf5 {[%clk 0:02:23.9]} 7.
Bg5 {[%clk 0:02:42.1]} 7... Nbd7 {[%clk 0:02:13.7]} 8. Bb3 {[%clk 0:02:35.8]}
8... h6 {[%clk 0:02:08.4]} 9. Be3 {[%clk 0:02:28]} 9... e6 {[%clk 0:02:00.9]}
10. Qe2 {[%clk 0:02:25.9]} 10... Qa5 {[%clk 0:01:50.4]} 11. Bd2 {[%clk
0:02:20.5]} 11... exf3 {[%clk 0:01:47.1]} 12. Nxf3 {[%clk 0:02:20.3]} 12... Qc7
{[%clk 0:01:40.6]} 13. O-O {[%clk 0:02:20]} 13... Bd6 {[%clk 0:01:39.3]} 14. d5
{[%clk 0:01:17.8]} 14... cxd5 {[%clk 0:01:29.7]} 15. Nb5 {[%clk 0:01:17.2]}
15... Qb6+ {[%clk 0:01:20.5]} 16. Kh1 {[%clk 0:01:11.1]} 16... Be7 {[%clk
0:01:04.9]} 17. Be3 {[%clk 0:01:02.2]} 17... Bc5 {[%clk 0:01:04.9]} 18. Nfd4
{[%clk 0:01:01.2]} 18... Be4 {[%clk 0:01:01.7]} 19. Rbd1 {[%clk 0:00:50.3]}
19... Ne5 {[%clk 0:00:50.1]} 20. Nc3 {[%clk 0:00:40.8]} 20... Qc7 {[%clk
0:00:41.1]} 21. Ndb5 {[%clk 0:00:27.1]} 21... Qe7 {[%clk 0:00:40.9]} 22. Rxf6
{[%clk 0:00:20.1]} 22... Bxe3 {[%clk 0:00:21.3]} 23. Nxe4 {[%clk 0:00:09.8]}
23... dxe4 {[%clk 0:00:09.1]} 24. Nd6+ {[%clk 0:00:09.6]} 24... Kf8 {[%clk
0:00:09.4]} 25. Rff1 {[%clk 0:00:06.9]} 25... Bb6 {[%clk 0:00:05.5]} 26. Nxe4
{[%clk 0:00:07.5]} 26... Rd8 {[%clk 0:00:03.5]} 27. Rde1 {[%clk 0:00:08.1]}
27... Bc7 {[%clk 0:00:03.6]} 28. Qf2 {[%clk 0:00:07.6]} 28... Kg8 {[%clk
0:00:03.4]} 29. Ng3 {[%clk 0:00:07.3]} 29... Ng4 {[%clk 0:00:02.8]} 30. Qf3
{[%clk 0:00:07.8]} 30... Qh4 {[%clk 0:00:02.5]} 31. Qxf7+ {[%clk 0:00:04.6]}
31... Kh7 {[%clk 0:00:03]} 32. h3 {[%clk 0:00:03.4]} 32... Qxg3 {[%clk
0:00:03.3]} 0-1

[Event "Late-Titled-Tuesday-Blitz-April-16-2024"]
[Site "Chess.com"]
[Date "2024.04.16"]
[Round "3"]
[White "Hrant_ChessMood"]
[Black "ellatambien"]
[Result "1-0"]
[WhiteElo "2979"]
[BlackElo "2714"]
[TimeControl "180+1"]
[EndTime "14:28:07 PDT"]
[Termination "Hrant_ChessMood won by resignation"]

1. d4 {[%clk 0:02:59.4]} 1... d5 {[%clk 0:03:00.1]} 2. c4 {[%clk 0:02:58.6]}
2... e6 {[%clk 0:03:00.5]} 3. Nc3 {[%clk 0:02:57.2]} 3... c5 {[%clk 0:03:00.5]}
4. e3 {[%clk 0:02:53.2]} 4... Nf6 {[%clk 0:02:59.8]} 5. cxd5 {[%clk 0:02:51.2]}
5... exd5 {[%clk 0:02:59.1]} 6. Bb5+ {[%clk 0:02:50.8]} 6... Nc6 {[%clk
0:02:55.4]} 7. Nf3 {[%clk 0:02:50.5]} 7... cxd4 {[%clk 0:02:48.4]} 8. Nxd4
{[%clk 0:02:50.2]} 8... Bd7 {[%clk 0:02:48.5]} 9. Nf3 {[%clk 0:02:50.2]} 9...
Bc5 {[%clk 0:02:40.7]} 10. O-O {[%clk 0:02:37.8]} 10... a6 {[%clk 0:02:40.1]}
11. Bxc6 {[%clk 0:02:34.6]} 11... bxc6 {[%clk 0:02:37.8]} 12. b3 {[%clk
0:02:34.6]} 12... O-O {[%clk 0:02:28.2]} 13. Bb2 {[%clk 0:02:34.6]} 13... Bd6
{[%clk 0:02:25.3]} 14. Rc1 {[%clk 0:02:27.6]} 14... Qe7 {[%clk 0:02:21.1]} 15.
Ne2 {[%clk 0:02:25.7]} 15... Ne4 {[%clk 0:02:17.3]} 16. Ng3 {[%clk 0:02:23.5]}
16... Nxg3 {[%clk 0:02:10.5]} 17. hxg3 {[%clk 0:02:23.1]} 17... a5 {[%clk
0:02:08.1]} 18. Nd4 {[%clk 0:02:12]} 18... Rfc8 {[%clk 0:02:05.2]} 19. Qd3
{[%clk 0:02:01.2]} 19... a4 {[%clk 0:02:02.5]} 20. Nf5 {[%clk 0:01:55.8]} 20...
Bxf5 {[%clk 0:02:00.7]} 21. Qxf5 {[%clk 0:01:56.7]} 21... axb3 {[%clk
0:02:00.6]} 22. axb3 {[%clk 0:01:57.6]} 22... Rc7 {[%clk 0:01:57.8]} 23. Rc2
{[%clk 0:01:45.8]} 23... f6 {[%clk 0:01:56.8]} 24. Rfc1 {[%clk 0:01:45.2]} 24...
Rac8 {[%clk 0:01:56.9]} 25. Bd4 {[%clk 0:01:43.2]} 25... Ba3 {[%clk 0:01:22.6]}
26. Ra1 {[%clk 0:01:37.5]} 26... Bb4 {[%clk 0:01:21.7]} 27. Ra6 {[%clk
0:01:25.1]} 27... Qe4 {[%clk 0:01:12.7]} 28. Qxe4 {[%clk 0:00:33]} 28... dxe4
{[%clk 0:01:13.6]} 29. Bc3 {[%clk 0:00:33.9]} 29... Be7 {[%clk 0:01:09.7]} 30.
g4 {[%clk 0:00:27.9]} 30... Rb7 {[%clk 0:01:05.1]} 31. Ra4 {[%clk 0:00:23.4]}
31... Rxb3 {[%clk 0:01:02.7]} 32. Rxe4 {[%clk 0:00:23.5]} 32... Kf7 {[%clk
0:01:02.9]} 33. Rc4 {[%clk 0:00:23]} 33... c5 {[%clk 0:00:58.7]} 34. g3 {[%clk
0:00:22.8]} 34... Rd8 {[%clk 0:00:56.7]} 35. Kg2 {[%clk 0:00:22.8]} 35... Rd1
{[%clk 0:00:56.5]} 36. Bb2 {[%clk 0:00:17.8]} 36... Rb1 {[%clk 0:00:55.1]} 37.
Bc1 {[%clk 0:00:17.9]} 37... Rd3 {[%clk 0:00:53.9]} 38. e4 {[%clk 0:00:17.7]}
38... Rd1 {[%clk 0:00:53.3]} 39. Be3 {[%clk 0:00:18.1]} 39... Re1 {[%clk
0:00:50]} 40. Kf3 {[%clk 0:00:17.6]} 40... Rb3 {[%clk 0:00:48.8]} 41. Ra2 {[%clk
0:00:16.8]} 41... g6 {[%clk 0:00:44.7]} 42. Ra7 {[%clk 0:00:16.9]} 42... h5
{[%clk 0:00:43.6]} 43. gxh5 {[%clk 0:00:16.1]} 43... gxh5 {[%clk 0:00:44.5]} 44.
Rxc5 {[%clk 0:00:14.2]} 44... Rb8 {[%clk 0:00:34.3]} 45. Rxh5 {[%clk 0:00:14]}
45... Kg6 {[%clk 0:00:33.8]} 46. Rd5 {[%clk 0:00:13.4]} 46... Bf8 {[%clk
0:00:32.3]} 47. Rc7 {[%clk 0:00:09.9]} 47... Rb6 {[%clk 0:00:32]} 48. Bxb6
{[%clk 0:00:09.3]} 1-0